fUSD/lending_fUSD_20251224
["ID","MTS","AMOUNT","RATE_DAILY","PERIOD"]
[399622163,1766560240666,-500.0,0.00020973,2]
[399622164,1766560240676,-500.41121421,0.00020973,2]
[399622165,1766560240687,-500.0,0.00020973,2]
[399622166,1766560240697,-500.0,0.00020973,2]
[399622167,1766560240707,-501.20680817,0.00020973,2]
[399622168,1766560240718,-156.62518783,0.00020973,2]
[399622169,1766560240729,-480.09853152,0.00020973,2]
[399622170,1766560240740,-501.63628178,0.00020973,2]
[399622171,1766560240751,-500.0,0.00020973,2]
[399622172,1766560240761,-501.12626334,0.00020973,2]
[399622173,1766560240772,-500.0,0.00020973,2]
[399622174,1766560240782,-181.04592189,0.00020973,2]
[399622175,1766560240792,-150.01500017,0.00020973,2]
[399622176,1766560240801,-500.0923857,0.00020973,2]
[399622177,1766560240812,-503.11330807,0.00020973,2]
[399622178,1766560240822,-501.06943212,0.00020973,2]
[399622179,1766560240832,-500.7748224,0.00020973,2]
[399622180,1766560240842,-207.58860749,0.00020973,2]
[399622181,1766560240853,-501.52777641,0.00020973,2]
[399622182,1766560240863,-500.0,0.00020973,2]
[399622183,1766560240874,-530.33299684,0.00020973,2]
[399622184,1766560240884,-501.1107739,0.00020973,2]
[399622185,1766560240895,-500.51005259,0.00020973,2]
[399622186,1766560240906,-501.83382232,0.00020973,2]
[399622187,1766560240916,-500.70766283,0.00020973,2]
[399622189,1766560240926,-505.10920999,0.00020973,2]
[399622191,1766560240936,-501.65369722,0.00020973,2]
[399622192,1766560240945,-500.8423155,0.00020973,2]
[399622194,1766560240955,-501.24296412,0.00020973,2]
[399622196,1766560240964,-509.43327994,0.00020973,2]
[399622198,1766560240973,-164.90862468,0.00020973,2]
[399622200,1766560240983,-3939.29695116,0.00021003,2]
[399622201,1766560240993,-11924.97969488,0.00021003,2]
[399622203,1766560241003,-1000.0,0.00021043,2]
[399622205,1766560241013,-500.0,0.00021075,2]
[399622207,1766560241023,-500.0,0.00021076,2]
[399622209,1766560241032,-500.0,0.00021077,2]
[399622211,1766560241042,-499.9999,0.00021078,2]
[399622213,1766560241052,-166.64,0.000213,4]
[399622215,1766560241062,-168.4,0.00021347,2]
[399622217,1766560241072,-6356.57,0.0002137,2]
[399622219,1766560241081,-1152.0,0.00021442,2]
[399622221,1766560241092,-953.0,0.00021442,2]
[399622223,1766560241102,-543.0,0.0002147,2]
[399622225,1766560241114,-268.11571902,0.0002147,2]
[399622227,1766560241124,-359.76179104,0.0002147,2]
[399622229,1766560241134,-1000.0,0.00021521,2]
[399622231,1766560241144,-1000.0,0.00021521,2]
[399622232,1766560241154,-1000.0,0.00021521,2]
[399622233,1766560241165,-1000.0,0.00021521,2]
[399622234,1766560241175,-1000.0,0.00021521,2]
[399622235,1766560241184,-204.54118547,0.00021818,2]
[399622236,1766560241194,-4609.0,0.00021875,2]
[399622237,1766560241205,-500.0,0.00021917,2]
[399622238,1766560241214,-500.0,0.00021917,2]
[399622239,1766560241224,-500.0,0.00021917,2]
[399622240,1766560241234,-500.0,0.00021917,2]
[399622241,1766560241244,-500.0,0.00021917,2]
[399622242,1766560241255,-5000.0,0.00021918,2]
[399622243,1766560241265,-500.0,0.00021918,2]
[399622244,1766560241275,-500.0,0.00021918,2]
[399622245,1766560241286,-500.0,0.00021918,2]
[399622246,1766560241296,-294.7804169,0.00021918,2]
[399622247,1766560241306,-274.22,0.00022,7]
[399622248,1766560241316,-150.99,0.00022058,2]
[399622249,1766560241325,-1500.0,0.00022068,2]
[399622250,1766560241335,-425.64931547,0.00022068,2]
[399622251,1766560241345,-900.36560755,0.00022068,2]
[399622252,1766560241355,-1500.0,0.00022068,2]
[399622253,1766560241364,-502.73299854,0.00022068,2]
[399622254,1766560241375,-2000.0,0.000221,2]
[399622255,1766560241386,-2000.0,0.000221,2]
[399622256,1766560241395,-167.07,0.00022271,2]
[399622257,1766560241406,-171.0,0.00022397,2]
[399622258,1766560241416,-184.97,0.00022425,2]
[399622259,1766560241429,-364.6925655,0.00022588,2]
[399622260,1766560241439,-2109.63317787,0.00022616,2]
[399622261,1766560241450,-1670.69301146,0.00022616,2]
[399622262,1766560241461,-1821.2,0.00022763,2]
[399622263,1766560241471,-543.0,0.00022839,2]
[399622264,1766560241482,-373.07297731,0.00022839,2]
[399622265,1766560241493,-621.78829552,0.00022841,2]
[399622266,1766560241503,-3939.29695116,0.00023024,2]
[399622267,1766560241513,-11924.97969488,0.00023024,2]
[399622268,1766560241523,-16521.58447012,0.00023061,2]
[399622269,1766560241534,-1000.0,0.00023147,2]
[399622270,1766560241544,-387.99996657,0.00023287,2]
[399622271,1766560241554,-1613.0,0.00023468,2]
[399622272,1766560241564,-150.18672367,0.00023673,2]
[399622273,1766560241574,-167.07,0.00023969,2]
[399622274,1766560241584,-364.48,0.00024016,2]
[399622275,1766560241594,-2521.0,0.00024062,2]
[399622276,1766560241604,-543.0,0.00024208,2]
[399622277,1766560241614,-386.87667747,0.00024208,2]
[399622278,1766560241624,-288.42951792,0.00024304,2]
[399622279,1766560241634,-168.4,0.00024397,2]
[399622280,1766560241644,-614.909,0.00024462,2]
[399622281,1766560241656,-1263.0,0.00024462,2]
[399622282,1766560241666,-432.0,0.00024462,2]
[399622283,1766560241676,-912.0,0.00024462,2]
[399622284,1766560241687,-1198.0,0.00024462,2]
[399622285,1766560241697,-4807.0,0.00024462,2]
[399622286,1766560241707,-6533.0,0.00024462,2]
[399622287,1766560241718,-2430.0,0.00024462,2]
[399622288,1766560241728,-165.0,0.000246,7]
[399622289,1766560241737,-1090.09,0.00024658,2]
[399622290,1766560241747,-1000.0,0.00024658,2]
[399622291,1766560241757,-2846.0077111,0.00024697,2]
[399622292,1766560241767,-797.40688775,0.00024721,10]
[399622293,1766560241777,-150.99,0.00024737,2]
[399622294,1766560241788,-150.99,0.00024737,2]
[399622295,1766560241799,-154.29092657,0.00024744,7]
[399622296,1766560241809,-500.0,0.00024746,2]
[399622297,1766560241819,-500.0,0.00024746,2]
[399622298,1766560241828,-500.0,0.00024746,2]
[399622299,1766560241839,-9984.5441591,0.00024747,2]
[399622300,1766560241849,-218328.0963961,0.00024747,2]
[399622301,1766560241859,-183378.2411567,0.00024747,2]
[399622302,1766560241869,-1821.2,0.00024764,2]
[399622303,1766560241879,-1188.27386515,0.0002479,2]
[399622304,1766560241889,-150.99,0.0002479,2]
[399622305,1766560241899,-150.99,0.0002479,2]
[399622306,1766560241909,-150.99,0.0002479,2]
[399622307,1766560241919,-150.99,0.0002479,2]
[399622308,1766560241929,-150.0,0.000248,2]
[399622309,1766560241938,-200.0,0.000248,2]
[399622310,1766560241948,-154.92559391,0.000248,2]
[399622311,1766560241958,-200.0,0.000248,2]
[399622312,1766560241968,-151.0,0.000248,2]
[399622313,1766560241979,-170.67291094,0.000248,2]
[399622314,1766560241989,-1000.0,0.000248,2]
[399622315,1766560242001,-186.82,0.000248,11]
[399622316,1766560242010,-604640.842721,0.000248,3]
[399622317,1766560242020,-150.99,0.0002489,2]
[399622318,1766560242030,-150.99,0.0002489,2]
[399622319,1766560242040,-150.99,0.0002489,2]
[399622320,1766560242050,-272475.6845176,0.000249,3]
[399622321,1766560242180,-5590.8622139,0.000249,3]
[399622322,1766560242192,-11224.21050213,0.000249,3]
[399622323,1766560242204,-315314.55590937,0.000249,3]
[399622324,1766560242214,-154.840936,0.000249,7]
[399622325,1766560242224,-151.0,0.000249,7]
[399622326,1766560242235,-151.0,0.000249,7]
[399622327,1766560242246,-151.0,0.000249,7]
[399622328,1766560242256,-157.31902595,0.000249,7]
[399622329,1766560242267,-150.99,0.0002499,2]
[399622330,1766560242276,-607.23865289,0.00024999,2]
[399622331,1766560242286,-7087.33136433,0.00025,2]
[399622332,1766560242295,-10420.17850239,0.00025,120]
[399622333,1766560242307,-19999.685214,0.00025,120]
[399622334,1766560242323,-1149.11159905,0.00025,120]
[399622335,1766560242335,-508.28615974,0.00025,120]
[399622344,1766560244111,-1.7e-07,0.00025,120]
[399622357,1766560282713,9795.46881453,0.00014842,2]
[399622358,1766560282745,10000.01,0.00014842,2]
[399622359,1766560282775,10000.01,0.00014842,2]
[399622360,1766560282805,10000.01,0.00014842,2]
[399622361,1766560282834,10000.01,0.00014842,2]
[399622362,1766560282864,10000.01,0.00014842,2]
[399622363,1766560282895,10000.01,0.00014842,2]
[399622364,1766560282923,10000.01,0.00014842,2]
[399622365,1766560282952,10000.01,0.00014842,2]
[399622366,1766560282981,10000.01,0.00014842,2]
[399622367,1766560284457,-1121.17687913,0.00014842,2]
[399622368,1766560287763,-196.67112505,0.00014842,2]
[399622369,1766560289847,-153.54788473,0.00014842,2]
[399622370,1766560293951,-189.07379348,0.00014842,2]
[399622371,1766560296160,-312.35765271,0.00014842,2]
[399622372,1766560299603,-10000.01,0.00014842,2]
[399622373,1766560299775,-10000.01,0.00014842,2]
[399622374,1766560299900,-10000.01,0.00014842,2]
[399622375,1766560299998,-10000.01,0.00014842,2]
[399622376,1766560300114,-10000.01,0.00014842,2]
[399622377,1766560300250,-10000.01,0.00014842,2]
[399622378,1766560300371,-10000.01,0.00014842,2]
[399622379,1766560300508,-10000.01,0.00014842,2]
[399622380,1766560300620,-10000.01,0.00014842,2]
[399622381,1766560302553,-238.02179816,0.00014842,2]
[399622382,1766560302631,-10000.01,0.00014842,2]
[399622383,1766560304210,-527.2430719,0.00014842,2]
[399622384,1766560305710,-10000.01,0.00014842,2]
[399622385,1766560305934,-10000.01,0.00014842,2]
[399622386,1766560306053,-10000.01,0.00014842,2]
[399622387,1766560306182,-10000.01,0.00014842,2]
[399622388,1766560306331,-10000.01,0.00014842,2]
[399622389,1766560306459,-10000.01,0.00014842,2]
[399622390,1766560310223,-162.31733358,0.00014842,2]
[399622391,1766560311607,-10000.01,0.00014842,2]
[399622392,1766560311752,-10000.01,0.00014842,2]
[399622393,1766560311806,-291.47211502,0.00014842,2]
[399622394,1766560311895,-10000.01,0.00014842,2]
[399622395,1766560313499,-296.59176829,0.00014842,2]
[399622396,1766560317620,-181.01732946,0.00014842,2]
[399622397,1766560319133,-425.68416417,0.00014842,2]
[399622398,1766560320893,-10000.01,0.00014842,2]
[399622399,1766560321166,-10000.01,0.00014842,2]
[399622400,1766560321230,-392.94256692,0.00014842,2]
[399622401,1766560321299,-10000.01,0.00014842,2]
[399622402,1766560325871,-209.08747148,0.00014841,2]
[399622403,1766560326865,-90.91252852,0.00014841,2]
[399622404,1766560326896,-150.0,0.00014841,2]
[399622405,1766560327301,-9518.18494296,0.00014842,2]
[399622406,1766560327425,-187.01091802,0.00014842,2]
[399622407,1766560327466,-10000.01,0.00014842,2]
[399622408,1766560327486,-10000.01,0.00014842,2]
[399622409,1766560328622,4825.81420124,7.945e-05,2]
[399622410,1766560328652,4825.81420124,7.945e-05,2]
[399622411,1766560328677,4825.81420124,7.945e-05,2]
[399622412,1766560328701,4825.81420124,7.945e-05,2]
[399622413,1766560328724,248.50908604,7.945e-05,2]
[399622414,1766560329874,-288.12267172,0.00014842,2]
[399622415,1766560329944,-10000.01,0.00014842,2]
[399622416,1766560330011,-10000.01,0.00014842,2]
[399622417,1766560330166,-10000.01,0.00014842,2]
[399622418,1766560333458,-211.87732828,0.00014842,2]
[399622419,1766560335431,-176.62314297,0.00014842,2]
[399622420,1766560342712,-302.0,0.00014842,2]
[399622421,1766560345201,-217.24974914,0.00014842,2]
[399622422,1766560349764,-174.21352649,0.00014842,2]
[399622423,1766560351382,-10000.01,0.00014842,2]
[399622424,1766560351611,-10000.01,0.00014842,2]
[399622425,1766560351704,-10000.01,0.00014842,2]
[399622426,1766560351855,-10000.01,0.00014842,2]
[399622427,1766560351957,-10000.01,0.00014842,2]
[399622428,1766560352054,-10000.01,0.00014842,2]
[399622429,1766560352179,-10000.01,0.00014842,2]
[399622430,1766560352315,-10000.01,0.00014842,2]
[399622431,1766560352536,-10000.01,0.00014842,2]
[399622432,1766560353970,-233.31876094,0.00014842,2]
[399622433,1766560358584,-256.37158289,0.00014842,2]
[399622434,1766560360298,-325.196631,0.00014842,2]
[399622435,1766560363425,-10000.01,0.00014842,2]
[399622436,1766560363567,-10000.01,0.00014842,2]
[399622437,1766560363678,-10000.01,0.00014842,2]
[399622438,1766560363826,-10000.01,0.00014842,2]
[399622439,1766560365918,-10000.01,0.00014842,2]
[399622440,1766560366018,-10000.01,0.00014842,2]
[399622441,1766560366140,-10000.01,0.00014842,2]
[399622442,1766560366298,-10000.01,0.00014842,2]
[399622443,1766560366427,-10000.01,0.00014842,2]
[399622444,1766560366990,-294.66118214,0.00014842,2]
[399622445,1766560369114,-205.33881786,0.00014842,2]
[399622446,1766560369774,183.850552,0.00014767,2]
[399622447,1766560370831,343.2820287,0.00014742,2]
[399622448,1766560373438,-181.99688653,0.00014842,2]
[399622449,1766560374995,-156.41160817,0.00014842,2]
[399622450,1766560377610,-398.99336004,0.00014842,2]
[399622451,1766560383169,-276.11513699,0.00014842,2]
[399622452,1766560385508,-500.0,0.00014842,2]
[399622453,1766560389692,-176.09007925,0.00014841,2]
[399622454,1766560393197,-427.79084432,0.00014841,2]
[399622455,1766560396879,4933.85330371,0.00014742,2]
[399622456,1766560398414,-468.8995638,0.00014841,2]
[399622457,1766560400897,-57.21951263,0.00014841,2]
[399622458,1766560400927,-242.78048737,0.00014842,2]
[399622459,1766560404896,-189.88430731,0.00014842,2]
[399622460,1766560406482,-320.06511931,0.00014842,2]
[399622461,1766560415712,-237.13811869,0.00014842,2]
[399622462,1766560417919,-227.11099474,0.00014842,2]
[399622463,1766560421528,-201.49824492,0.00014842,2]
[399622464,1766560423174,-157.52381796,0.00014842,2]
[399622465,1766560425212,-205.1043219,0.00014842,2]
[399622466,1766560429812,-187.84216364,0.00014842,2]
[399622467,1766560437713,-244.16623454,0.00014842,2]
[399622468,1766560439776,-312.60431575,0.00014842,2]
[399622469,1766560451233,-181.65882344,0.00014841,2]
[399622470,1766560453880,-118.34117656,0.00014841,2]
[399622471,1766560453909,-166.33236124,0.00014842,2]
[399622472,1766560454906,-315.34295162,0.00014842,2]
[399622473,1766560459120,-210.0,0.00014842,2]
[399622474,1766560461156,-300.0,0.00014842,2]
[399622475,1766560463727,-403.50505732,0.00014842,2]
[399622476,1766560470538,-609.84158864,0.00014842,2]
[399622477,1766560472137,-356.29842397,0.00014842,2]
[399622478,1766560477039,-297.87719516,0.00014842,2]
[399622479,1766560478592,-385.58142651,0.00014842,2]
[399622480,1766560480765,-241.96196376,0.00014842,2]
[399622481,1766560485345,-250.0,0.00014842,2]
[399622482,1766560487991,-186.94892859,0.00014842,2]
[399622483,1766560489547,-300.0,0.00014842,2]
[399622484,1766560493494,-296.70157603,0.00014842,2]
[399622485,1766560497681,-369.65896929,0.00014842,2]
[399622486,1766560501810,-276.18542143,0.00014841,2]
[399622487,1766560503901,-23.81457857,0.00014841,2]
[399622488,1766560503929,-233.77275139,0.00014841,2]
[399622489,1766560505689,336.15530719,0.00014742,2]
[399622490,1766560509988,-179.54689225,0.00014841,2]
[399622491,1766560513377,-492.43574919,0.00014841,2]
[399622492,1766560520418,-294.24460717,0.00014841,2]
[399622493,1766560520443,-150.0,0.00014841,2]
[399622494,1766560520475,-57.62827067,0.00014842,2]
[399622495,1766560525715,-162.86577779,0.00014842,2]
[399622496,1766560528349,-450.0,0.00014842,2]
[399622497,1766560535186,-227.89241243,0.00014842,2]
[399622498,1766560537953,-253.351569,0.00014842,2]
[399622499,1766560542152,-182.69761085,0.00014842,2]
[399622500,1766560544220,-258.41362041,0.00014842,2]
[399622501,1766560550392,-174.67189407,0.00014842,2]
[399622502,1766560552890,-207.40171944,0.00014842,2]
[399622503,1766560559562,-206.21057752,0.00014842,2]
[399622504,1766560566935,-282.23468126,0.00014841,2]
[399622505,1766560568917,-17.76531874,0.00014841,2]
[399622506,1766560568950,-193.96342509,0.00014842,2]
[399622507,1766560575261,-190.21849808,0.00014841,2]
[399622508,1766560575294,-138.93285138,0.00014842,2]
[399622509,1766560579245,4202.8688084,0.00014742,2]
[399622510,1766560579272,6145.03685469,0.00014742,2]
[399622511,1766560582113,-427.89241243,0.00014842,2]
[399622512,1766560584164,-397.97228736,0.00014842,2]
[399622513,1766560589960,-151.00000017,0.00014842,2]
[399622514,1766560592546,-274.82146079,0.00014842,2]
[399622515,1766560597691,-214.64810057,0.00014842,2]
[399622516,1766560600746,-234.69882905,0.00014842,2]
[399622517,1766560605589,-272.10758757,0.00014842,2]
[399622518,1766560607939,-243.83467746,0.00014842,2]
[399622519,1766560609849,-327.97898988,0.00014842,2]
[399622520,1766560610969,714.91264801,0.00014742,2]
[399622521,1766560614670,-287.21469149,0.00014842,2]
[399622522,1766560616733,-212.78530851,0.00014842,2]
[399622523,1766560617419,2500.0,0.00014742,2]
[399622524,1766560622377,-239.17367955,0.00014841,2]
[399622525,1766560623939,-60.82632045,0.00014841,2]
[399622526,1766560623971,-145.78677013,0.00014842,2]
[399622527,1766560635629,572.8861784,0.000176,30]
[399622528,1766560691212,793.51,0.00013699,2]
[399622529,1766560692155,212.75296869,0.00014742,2]
[399622530,1766560737679,229.49197247,0.000226,120]
[399622531,1766560764797,8993.74703131,0.00014742,2]
[399622532,1766560764824,10000.01,0.00014742,2]
[399622533,1766560764850,7440.66736869,0.00014742,2]
[399622534,1766560774473,2500.0,0.00014742,2]
[399622535,1766560783120,59.34263131,0.00014742,2]
[399622536,1766560783145,5570.12707714,0.00014742,2]
[399622537,1766560893022,4429.88292286,0.00014742,2]
[399622538,1766560893047,10000.01,0.00014742,2]
[399622539,1766560893071,2539.83907714,0.00014742,2]
[399622540,1766560893687,625.548567,0.00014742,2]
[399622541,1766560899012,2500.0,0.00014742,2]
[399622542,1766561015728,272.00917284,0.00014741,2]
[399622543,1766561043550,560.8221,0.00014742,2]
[399622544,1766561052266,850.34,8.589e-05,2]
[399622545,1766561052464,850.34,9.041e-05,2]
[399622546,1766561052686,850.34,9.493e-05,2]
[399622547,1766561052898,850.34,9.945e-05,2]
[399622548,1766561053131,100.43108302,0.00010397,2]
[399622549,1766561053158,749.90891698,0.00010397,2]
[399622550,1766561053341,850.34,0.00010849,2]
[399622551,1766561054563,850.34,0.00011301,2]
[399622552,1766561054669,850.34,0.00011753,2]
[399622553,1766561054747,850.34,0.00012205,2]
[399622554,1766561054843,850.34,0.00012657,2]
[399622555,1766561054927,850.34,0.00013109,2]
[399622556,1766561055005,850.34,0.00013561,2]
[399622557,1766561055109,850.34,0.00014013,2]
[399622558,1766561055194,850.34,0.00014465,2]
[399622559,1766561089437,1597.04108302,0.00014742,2]
[399622560,1766561089463,7716.07401368,0.00014742,2]
[399622561,1766561118826,2283.93598632,9e-05,2]
[399622562,1766561118856,908.44183079,9e-05,2]
[399622563,1766561153297,9091.56816921,0.0001299,2]
[399622564,1766561153323,10000.01,0.0001299,2]
[399622565,1766561153348,10000.01,0.0001299,2]
[399622566,1766561153374,2194.72981786,0.0001299,2]
[399622567,1766561161133,7805.28018214,8e-05,2]
[399622568,1766561161162,2523.85080902,8e-05,2]
[399622569,1766561171001,5066.52273765,0.00014742,2]
[399622570,1766561178804,547.35499609,0.00014742,2]
[399622571,1766561231346,205.0,9.8e-05,2]
[399622572,1766561297404,1657.28145724,0.0001,2]
[399622573,1766561297428,268.69244901,0.0001,2]
[399622574,1766561299227,390.37563915,7.888e-05,2]
[399622575,1766561308813,9340.94191184,0.00014742,2]
[399622576,1766561308845,10000.01,0.00014742,2]
[399622577,1766561308879,10000.01,0.00014742,2]
[399622578,1766561308911,10000.01,0.00014742,2]
[399622579,1766561308942,10000.01,0.00014742,2]
[399622580,1766561308975,10000.01,0.00014742,2]
[399622581,1766561309008,10000.01,0.00014742,2]
[399622582,1766561309043,10000.01,0.00014742,2]
[399622583,1766561309078,10000.01,0.00014742,2]
[399622584,1766561309112,10000.01,0.00014742,2]
[399622585,1766561309168,2727.54085448,0.0001,2]
[399622586,1766561318781,1849.76426072,0.0001,2]
[399622587,1766561318806,4825.81420124,0.0001,2]
[399622588,1766561318830,4157.41394765,0.0001,2]
[399622589,1766561329148,-640.0604973,0.00014742,2]
[399622590,1766561329251,-10000.01,0.00014742,2]
[399622591,1766561329358,-10000.01,0.00014742,2]
[399622592,1766561329549,-10000.01,0.00014742,2]
[399622593,1766561329675,-10000.01,0.00014742,2]
[399622594,1766561331484,-10000.01,0.00014742,2]
[399622595,1766561331581,-10000.01,0.00014742,2]
[399622596,1766561331743,-10000.01,0.00014742,2]
[399622597,1766561331878,-10000.01,0.00014742,2]
[399622598,1766561334494,-10000.01,0.00014742,2]
[399622599,1766561334614,-10000.01,0.00014742,2]
[399622600,1766561334717,-10000.01,0.00014742,2]
[399622601,1766561335014,-10000.01,0.00014742,2]
[399622602,1766561335124,-10000.01,0.00014742,2]
[399622603,1766561349907,-317.344035,0.00014733,2]
[399622604,1766561349943,-193.0,0.00014737,2]
[399622605,1766561349976,-250.0,0.00014737,2]
[399622606,1766561350088,-8479.32193,0.00014742,2]
[399622607,1766561350101,-10000.01,0.00014742,2]
[399622608,1766561350118,-10000.01,0.00014742,2]
[399622609,1766561350144,-10000.01,0.00014742,2]
[399622610,1766561369026,-1002.8809457,0.00014741,2]
[399622611,1766561369081,-7994.2481086,0.00014742,2]
[399622612,1766561369151,-2598.57955521,0.00014742,2]
[399622613,1766561369247,-10000.01,0.00014742,2]
[399622614,1766561374988,-10000.01,0.00014742,2]
[399622615,1766561375118,-10000.01,0.00014742,2]
[399622616,1766561403024,3552.743515,0.00014667,2]
[399622625,1766561431441,-500.0,0.00014733,2]
[399622626,1766561431451,-300.0,0.0001474,2]
[399622627,1766561431462,-1200.0,0.0001474,2]
[399622628,1766561431472,-300.0,0.0001474,2]
[399622629,1766561431482,-150.0,0.0001474,2]
[399622630,1766561431491,-1214.95929311,0.00014741,2]
[399622631,1766561431501,-500.0,0.00014741,2]
[399622632,1766561431510,-500.0,0.00014741,2]
[399622633,1766561431520,-500.0,0.00014741,2]
[399622634,1766561431530,-1214.95929311,0.00014741,2]
[399622635,1766561431540,-500.0,0.00014741,2]
[399622636,1766561431549,-500.0,0.00014741,2]
[399622637,1766561431559,-500.0,0.00014741,2]
[399622638,1766561431568,-500.0,0.00014741,2]
[399622639,1766561431579,-500.0,0.00014741,2]
[399622640,1766561431589,-500.0,0.00014741,2]
[399622642,1766561431599,-500.0,0.00014741,2]
[399622644,1766561431609,-500.0,0.00014741,2]
[399622645,1766561431619,-1214.95929311,0.00014741,2]
[399622647,1766561431629,-500.0,0.00014741,2]
[399622650,1766561431639,-1214.95929311,0.00014741,2]
[399622652,1766561431649,-500.0,0.00014741,2]
[399622654,1766561431659,-500.0,0.00014741,2]
[399622655,1766561431668,-500.0,0.00014741,2]
[399622656,1766561431678,-1214.95929311,0.00014741,2]
[399622657,1766561431688,-500.0,0.00014741,2]
[399622660,1766561431697,-363.74775278,0.00014741,2]
[399622662,1766561431708,-500.0,0.00014741,2]
[399622664,1766561431717,-396.44406827,0.00014741,2]
[399622666,1766561431727,-1214.95929311,0.00014741,2]
[399622668,1766561431737,-500.0,0.00014741,2]
[399622670,1766561431747,-1214.95929311,0.00014741,2]
[399622672,1766561431761,-500.0,0.00014741,2]
[399622674,1766561431771,-500.0,0.00014741,2]
[399622676,1766561431781,-500.0,0.00014741,2]
[399622678,1766561431791,-500.0,0.00014741,2]
[399622680,1766561431801,-500.0,0.00014741,2]
[399622681,1766561431811,-500.0,0.00014741,2]
[399622683,1766561431820,-1214.95929311,0.00014741,2]
[399622685,1766561431830,-500.0,0.00014741,2]
[399622687,1766561431839,-500.0,0.00014741,2]
[399622690,1766561431850,-500.0,0.00014741,2]
[399622691,1766561431860,-1214.95929311,0.00014741,2]
[399622693,1766561431870,-500.0,0.00014741,2]
[399622695,1766561431879,-1214.95929311,0.00014741,2]
[399622697,1766561431889,-500.0,0.00014741,2]
[399622699,1766561431899,-1214.95929311,0.00014741,2]
[399622701,1766561431908,-500.0,0.00014741,2]
[399622704,1766561431918,-1214.95929311,0.00014741,2]
[399622706,1766561431928,-500.0,0.00014741,2]
[399622708,1766561431938,-1214.95929311,0.00014741,2]
[399622709,1766561431947,-500.0,0.00014741,2]
[399622712,1766561431960,-1214.95929311,0.00014741,2]
[399622714,1766561431969,-359.48838679,0.00014741,2]
[399622716,1766561431979,-1214.95929311,0.00014741,2]
[399622718,1766561431989,-500.0,0.00014741,2]
[399622720,1766561431999,-1214.95929311,0.00014741,2]
[399622722,1766561432009,-1214.95929311,0.00014741,2]
[399622724,1766561432019,-1214.95929311,0.00014741,2]
[399622726,1766561432028,-1214.95929311,0.00014741,2]
[399622728,1766561432038,-500.0,0.00014741,2]
[399622730,1766561432048,-1214.95929311,0.00014741,2]
[399622732,1766561432057,-500.0,0.00014741,2]
[399622734,1766561432067,-1214.95929311,0.00014741,2]
[399622736,1766561432077,-1214.95929311,0.00014741,2]
[399622738,1766561432087,-500.0,0.00014741,2]
[399622740,1766561432101,-1214.95929311,0.00014741,2]
[399622742,1766561432110,-1214.95929311,0.00014741,2]
[399622744,1766561432119,-1214.95929311,0.00014741,2]
[399622746,1766561432131,-1214.95929311,0.00014741,2]
[399622748,1766561432141,-1214.95929311,0.00014741,2]
[399622750,1766561432151,-1214.95929311,0.00014741,2]
[399622752,1766561432161,-1214.95929311,0.00014741,2]
[399622754,1766561432172,-1214.95929311,0.00014741,2]
[399622756,1766561432182,-1214.95929311,0.00014741,2]
[399622758,1766561432192,-1214.95929311,0.00014741,2]
[399622760,1766561432202,-1214.95929311,0.00014741,2]
[399622762,1766561432211,-1214.95929311,0.00014741,2]
[399622764,1766561432221,-1214.95929311,0.00014741,2]
[399622766,1766561432231,-1214.95929311,0.00014741,2]
[399622768,1766561432242,-1214.95929311,0.00014741,2]
[399622771,1766561432252,-1214.95929311,0.00014741,2]
[399622773,1766561432262,-1214.95929311,0.00014741,2]
[399622775,1766561432272,-1214.95929311,0.00014741,2]
[399622776,1766561432282,-1214.95929311,0.00014741,2]
[399622777,1766561432292,-1214.95929311,0.00014741,2]
[399622778,1766561432301,-1214.95929311,0.00014741,2]